bitfinex/quotes_SOLUSD_20250930
["timestamp","ask_amount","ask_price","bid_price","bid_amount"]
[1759194192419,34.48,211.56,211.51,5.39782951]
[1759194192911,34.48,211.56,211.52,0.67]
[1759194193130,34.48,211.56,211.53,0.67]
[1759194193294,34.48,211.56,211.51,16.54760162]
[1759194193623,34.48,211.56,211.52,0.67]
[1759194193917,34.48,211.6,211.52,0.67]
[1759194194092,34.48,211.6,211.53,16.54611638]
[1759194194418,0.66,211.59,211.53,16.54611638]
[1759194194614,0.66,211.58,211.53,4.72746182]
[1759194194929,41.26548115,211.6,211.53,5.44746182]
[1759194195097,41.26548115,211.6,211.53,4.72746182]
[1759194195098,0.69,211.59,211.53,4.72746182]
[1759194195995,21.46305916,211.59,211.52,4.72768532]
[1759194196304,0.69,211.58,211.5,0.1]
[1759194196501,26.0,211.56,211.51,4.72790884]
[1759194196708,35.15,211.55,211.51,4.72790884]
[1759194197695,3.14135788,211.57,211.52,0.72]
[1759194197997,34.46,211.56,211.53,0.72]
[1759194198324,3.91016202,211.63,211.54,16.5453342]
[1759194198508,26.0,211.59,211.54,16.5453342]
[1759194198707,35.15,211.58,211.54,4.72723834]
[1759194199015,2.95418137,211.56,211.5,0.1]
[1759194199538,0.69,211.55,211.5,0.1]
[1759194199818,35.15,211.54,211.5,0.1]
[1759194200025,34.46,211.54,211.5,4.82801872]
[1759194200317,34.46,211.54,211.5,17.36834968]
[1759194200618,34.46,211.54,211.5,5.54801872]
[1759194200917,35.15,211.54,211.5,4.82801872]
[1759194201101,0.69,211.53,211.5,0.1]
[1759194201304,39.59559401,211.51,211.5,0.1]
[1759194201515,39.59559401,211.51,211.32,0.1]
[1759194201516,42.7359391,211.51,211.38,14.13312113]
[1759194201732,28.95418137,211.46,211.4,4.73036274]
[1759194201892,28.95418137,211.46,211.38,0.71]
[1759194201893,35.13,211.45,211.38,0.71]
[1759194202099,34.46,211.45,211.37,11.82742551]
[1759194202517,34.46,211.45,211.39,11.82624818]
[1759194202724,17.21977538,211.49,211.43,5.45333235]
[1759194203019,34.46,211.48,211.44,0.71]
[1759194203219,35.13,211.47,211.43,5.45333235]
[1759194203435,0.67,211.46,211.43,5.45333235]
[1759194203603,0.67,211.45,211.43,0.72379406]
[1759194203803,0.67,211.45,211.43,5.45346162]
[1759194204005,2.95418137,211.46,211.43,5.45346162]
[1759194204230,6.09082232,211.49,211.43,6.16346162]
[1759194204412,34.46,211.47,211.43,5.45346162]
[1759194204610,0.67,211.46,211.43,0.72379406]
[1759194204815,0.67,211.45,211.43,0.72379406]
[1759194205127,0.67,211.44,211.43,0.72379406]
[1759194205635,34.46,211.46,211.43,6.16342446]
[1759194205835,34.46,211.46,211.44,0.71]
[1759194206020,34.46,211.46,211.45,4.72925041]
[1759194206715,34.46,211.46,211.43,5.45331672]
[1759194207430,34.46,211.46,211.43,6.16331672]
[1759194208018,34.46,211.46,211.43,5.45331672]
[1759194208204,34.46,211.46,211.43,6.16331672]
[1759194209014,0.67,211.48,211.43,5.45331672]
[1759194209228,35.13,211.47,211.43,5.45331672]
[1759194209432,34.46,211.47,211.43,5.45331672]
[1759194209610,35.13,211.47,211.43,5.45331672]
[1759194210335,0.67,211.46,211.43,5.45331672]
[1759194210511,34.46,211.47,211.43,5.45331672]
[1759194210713,35.13,211.47,211.43,5.45331672]
[1759194211426,34.46,211.47,211.43,17.98756115]
[1759194211731,35.13,211.47,211.43,17.27756115]
[1759194212033,34.46,211.47,211.43,17.27756115]
[1759194212222,34.46,211.47,211.43,17.98756115]
[1759194212420,34.46,211.47,211.43,17.27756115]
[1759194212618,34.46,211.47,211.43,17.98756115]
[1759194212817,34.46,211.47,211.43,17.27756115]
[1759194213117,35.13,211.47,211.43,17.27756115]
[1759194213326,34.46,211.47,211.43,17.27756115]
[1759194213527,34.46,211.49,211.44,0.71]
[1759194213909,34.46,211.49,211.43,17.27756115]
[1759194214109,34.46,211.49,211.45,0.71]
[1759194215027,34.46,211.49,211.46,0.71]
[1759194215328,34.46,211.49,211.43,17.98756115]
[1759194215909,0.67,211.48,211.43,17.27756115]
[1759194216110,0.67,211.48,211.43,17.98756115]
[1759194216316,0.67,211.47,211.43,17.27756115]
[1759194216832,34.46,211.49,211.43,17.98756115]
[1759194218040,34.44,211.49,211.44,0.71]
[1759194218344,34.44,211.49,211.45,0.71]
[1759194218635,0.67,211.55,211.45,0.71]
[1759194218835,34.44,211.54,211.46,26.0]
[1759194219052,34.44,211.57,211.47,0.71]
[1759194219223,0.67,211.56,211.47,0.71]
[1759194219423,3.62418137,211.56,211.47,0.71]
[1759194219627,3.62418137,211.56,211.48,16.55002836]
[1759194219938,0.67,211.55,211.48,16.55002836]
[1759194220235,0.67,211.55,211.49,0.71]
[1759194221032,0.67,211.59,211.49,0.71]
[1759194221315,34.44,211.59,211.49,0.71]
[1759194221543,34.44,211.59,211.51,26.0]
[1759194221717,34.44,211.59,211.52,17.25689863]
[1759194222084,34.44,211.59,211.52,40.89532525]
[1759194222341,34.44,211.59,211.53,0.71]
[1759194222741,2.55989524,211.65,211.53,0.71]
[1759194222929,34.44,211.62,211.53,0.71]
[1759194223820,0.67,211.61,211.54,16.5453342]
[1759194224046,36.32989524,211.62,211.54,16.5453342]
[1759194224227,0.67,211.6,211.54,16.5453342]
[1759194224426,0.67,211.59,211.54,16.5453342]
[1759194224736,0.67,211.58,211.54,16.5453342]
[1759194225340,36.99989524,211.62,211.55,0.71]
[1759194225842,36.99989524,211.62,211.54,11.81809586]
[1759194226053,0.67,211.61,211.53,0.71]
[1759194227442,0.67,211.61,211.54,4.72723834]
[1759194227633,0.67,211.61,211.54,16.5453342]
[1759194228126,0.67,211.6,211.54,16.5453342]
[1759194228442,0.67,211.59,211.54,4.72723834]
[1759194228645,0.67,211.58,211.54,4.72723834]
[1759194228819,0.67,211.57,211.54,4.72723834]
[1759194229021,35.09,211.56,211.52,4.72747076]
[1759194229326,0.67,211.55,211.49,16.54924582]
[1759194231141,36.30989524,211.56,211.5,0.71]
[1759194231345,34.42,211.56,211.5,0.71]
[1759194232844,34.42,211.56,211.51,4.72790884]
[1759194233048,34.42,211.56,211.52,0.66]
[1759194233843,34.42,211.56,211.51,16.54768095]
[1759194234150,34.42,211.56,211.51,17.20768095]
[1759194234329,35.1,211.56,211.51,17.20768095]
[1759194235245,34.42,211.56,211.52,0.66]
[1759194235746,35.1,211.56,211.52,0.66]
[1759194235952,35.1,211.56,211.51,16.54768095]
[1759194236130,35.1,211.56,211.51,17.20768095]
[1759194236333,34.42,211.56,211.52,0.66]
[1759194236536,35.1,211.56,211.51,16.54768095]
[1759194236734,34.42,211.56,211.52,0.66]
[1759194237154,34.42,211.56,211.53,4.72746182]
[1759194237655,35.1,211.56,211.53,4.72746182]
[1759194238039,34.42,211.56,211.53,4.72746182]
[1759194238239,35.1,211.56,211.53,4.72746182]
[1759194238751,35.08,211.59,211.53,4.72746182]
[1759194239251,35.08,211.59,211.52,4.72768532]
[1759194239448,0.68,211.58,211.52,4.72768532]
[1759194239950,0.68,211.57,211.52,4.72768532]
[1759194240155,0.68,211.56,211.52,4.72768532]
[1759194240958,0.68,211.56,211.5,0.66]
[1759194240959,50.94153087,211.59,211.48,4.72849938]
[1759194241249,15.48548925,211.54,211.44,4.72947408]
[1759194241451,35.08,211.53,211.44,4.72947408]
[1759194241629,0.68,211.52,211.44,4.72947408]
[1759194241829,0.68,211.51,211.44,4.72947408]
[1759194242061,26.0,211.5,211.44,16.55315928]
[1759194242362,26.68,211.5,211.44,4.72947408]
[1759194242562,0.68,211.5,211.44,16.55315928]
[1759194242878,26.0,211.54,211.45,0.66]
[1759194243159,61.08,211.54,211.46,4.72902676]
[1759194243329,14.27559401,211.53,211.46,4.72902676]
[1759194243529,0.68,211.52,211.46,4.72902676]
[1759194243729,0.68,211.51,211.46,4.72902676]
[1759194243953,0.68,211.5,211.46,4.72902676]
[1759194244154,0.68,211.5,211.46,16.55159367]
[1759194244332,0.68,211.5,211.46,4.72902676]
[1759194245027,0.68,211.52,211.46,5.38902676]
[1759194245231,1.88989524,211.48,211.43,0.72379406]
[1759194245431,35.08,211.47,211.43,0.72379406]
[1759194245731,26.0,211.44,211.43,0.72379406]
[1759194246158,26.68,211.44,211.43,0.72379406]
[1759194246334,28.56989524,211.44,211.43,0.72379406]
[1759194247256,34.4,211.44,211.43,0.72379406]
[1759194247427,34.4,211.44,211.43,5.45349183]
[1759194247632,2.56989524,211.47,211.43,6.11349183]
[1759194247633,34.4,211.47,211.43,6.11349183]
[1759194247847,34.4,211.47,211.44,0.66]
[1759194248043,34.4,211.47,211.45,0.66]
[1759194248358,34.4,211.47,211.43,5.45349183]
[1759194249163,34.4,211.47,211.43,6.11349183]
[1759194249359,34.4,211.47,211.45,4.72925041]
[1759194249531,34.4,211.5,211.46,0.66]
[1759194249730,34.4,211.52,211.47,0.66]
[1759194249936,34.4,211.52,211.45,16.55237644]
[1759194250260,34.4,211.52,211.46,0.66]
[1759194250473,0.68,211.57,211.48,26.0]
[1759194250771,34.4,211.56,211.49,0.66]
[1759194251549,34.4,211.56,211.5,16.54846334]
[1759194251755,34.4,211.56,211.5,17.20846334]
[1759194251955,34.4,211.56,211.51,0.66]
[1759194252262,26.68,211.6,211.52,0.66]
[1759194252453,34.38,211.59,211.52,0.66]
[1759194253365,34.38,211.59,211.5,16.54846334]
[1759194253366,0.68,211.58,211.5,16.54846334]
[1759194253576,0.68,211.57,211.5,16.54846334]
[1759194253741,0.68,211.56,211.5,16.54846334]
[1759194253939,0.68,211.55,211.5,16.54846334]
[1759194254153,13.59559401,211.58,211.5,16.54846334]
[1759194254356,14.27559401,211.58,211.51,0.66]
[1759194254740,34.38,211.57,211.5,16.54846334]
[1759194254960,0.68,211.56,211.5,4.72813238]
[1759194255166,0.68,211.55,211.5,4.72813238]
[1759194255350,34.38,211.57,211.5,4.72813238]
[1759194255351,0.66,211.54,211.5,4.72813238]
[1759194255551,39.10660676,211.57,211.47,16.55048319]
[1759194255758,0.66,211.56,211.48,0.71]
[1759194257042,34.38,211.57,211.48,0.71]
[1759194257246,26.66,211.58,211.48,0.71]
[1759194257463,61.04,211.58,211.48,0.71]
[1759194257665,0.66,211.57,211.49,16.54924582]
[1759194257848,0.66,211.57,211.49,17.25924582]
[1759194258660,0.66,211.57,211.5,0.71]
[1759194259193,0.66,211.57,211.49,4.72835595]
[1759194259343,0.66,211.56,211.49,4.72835595]
[1759194259737,65.10644142,211.58,211.48,4.72857953]
[1759194259959,0.66,211.55,211.48,16.55002836]
[1759194260259,62.26989524,211.58,211.49,0.71]
[1759194260471,61.04,211.58,211.49,0.71]
[1759194260778,13.59559401,211.61,211.49,0.71]
[1759194261056,35.04,211.6,211.49,0.71]
[1759194261259,3.80867175,211.6,211.49,0.71]
[1759194261449,34.38,211.59,211.49,0.71]
[1759194261847,34.38,211.59,211.5,16.54846334]
[1759194262059,0.72,211.58,211.5,16.54846334]
[1759194262259,0.72,211.58,211.51,0.69]
[1759194263744,0.72,211.58,211.5,4.72813238]
[1759194264066,26.0,211.56,211.48,4.72857953]
[1759194264260,26.0,211.56,211.48,16.55002836]
[1759194264261,0.72,211.55,211.48,16.55002836]
[1759194264454,34.36,211.54,211.49,0.69]
[1759194264852,34.36,211.54,211.5,0.69]
[1759194265059,60.36,211.56,211.5,0.69]
[1759194265457,34.36,211.56,211.5,0.69]
[1759194265657,34.36,211.59,211.5,0.69]
[1759194266077,34.36,211.59,211.51,16.54768095]
[1759194266549,0.72,211.58,211.51,16.54768095]
[1759194266750,34.36,211.59,211.51,16.54768095]
[1759194266951,34.36,211.59,211.52,0.69]
[1759194267655,35.08,211.59,211.52,0.69]
[1759194268174,35.08,211.59,211.53,16.54611638]
[1759194269257,34.36,211.59,211.54,0.69]
[1759194269459,34.36,211.59,211.55,0.69]
[1759194269885,35.08,211.59,211.53,16.54611638]
[1759194270052,34.36,211.59,211.54,0.69]
[1759194270254,132.32,211.65,211.56,26.0]
[1759194270575,0.72,211.65,211.57,0.69]
[1759194270879,14.31559401,211.7,211.57,0.69]
[1759194271062,0.72,211.7,211.61,26.0]
[1759194271377,0.72,211.7,211.62,0.69]
[1759194272095,0.72,211.7,211.63,16.53829797]
[1759194273165,0.72,211.7,211.63,17.22829797]
[1759194274959,0.72,211.7,211.63,31.35850166]
[1759194276357,0.72,211.7,211.64,0.69]
[1759194276956,34.36,211.71,211.64,0.69]
[1759194277596,0.2,211.72,211.65,16.53673516]
[1759194277769,0.2,211.72,211.66,0.69]
[1759194277957,0.2,211.72,211.68,26.0]
[1759194278156,0.2,211.72,211.69,0.69]
[1759194279593,0.2,211.72,211.71,26.0]
[1759194279784,0.2,211.72,211.71,26.69]
[1759194280505,1e-08,211.72,211.71,26.69]
[1759194280676,1e-08,211.72,211.71,0.69]
[1759194281380,1e-08,211.72,211.71,14.28559401]
[1759194281894,1e-08,211.72,211.71,5.41344244]
[1759194283873,1e-08,211.8,211.74,26.0]
[1759194284072,1e-08,211.8,211.71,64.45647299]
[1759194284073,1e-08,211.8,211.79,26.0]
[1759194284976,1e-08,211.8,211.79,26.69]
[1759194285300,1e-08,211.8,211.79,26.0]
[1759194286098,1e-08,211.8,211.79,30.72165824]
[1759194287090,1e-08,211.8,211.79,4.72165824]
[1759194288096,1e-08,211.8,211.79,0.69]
[1759194288300,1e-08,211.8,211.79,26.69]
[1759194290701,0.2,211.87,211.79,80.41968909]
[1759194290898,0.2,211.87,211.8,0.69]
[1759194291274,0.92,211.87,211.8,0.69]
[1759194293397,0.2,211.87,211.81,16.52424341]
[1759194293601,0.2,211.87,211.82,34.28]
[1759194294101,0.9,211.87,211.82,34.95]
[1759194294492,0.7,211.86,211.81,50.80424341]
[1759194294802,0.7,211.86,211.81,51.47424341]
[1759194295107,0.2,211.87,211.82,0.67]
[1759194295282,0.9,211.87,211.83,16.52268328]
[1759194296904,0.7,211.86,211.83,16.52268328]
[1759194297196,0.7,211.86,211.83,11.80191663]
[1759194298599,0.2,211.87,211.83,12.47191663]
[1759194298903,0.9,211.87,211.83,11.80191663]
[1759194300101,0.2,211.87,211.83,11.80191663]
[1759194300402,0.2,211.87,211.84,0.67]
[1759194300902,0.2,211.87,211.83,46.06191663]
[1759194301206,0.2,211.87,211.85,0.67]
[1759194301496,1e-08,211.87,211.86,26.0]
[1759194301696,1e-08,211.87,211.86,26.67]
[1759194301914,1e-08,211.87,211.86,40.26559401]
[1759194302281,1e-08,211.87,211.86,44.98569218]
[1759194302617,1e-08,211.87,211.86,33.28229051]
[1759194302788,1e-08,211.87,211.86,65.65009817]
[1759194302989,1e-08,211.87,211.86,31.39009817]
[1759194303191,1e-08,211.87,211.86,4.72009817]
[1759194303710,0.70000001,211.87,211.84,4.72032842]
[1759194303900,0.7,211.86,211.84,4.72032842]
[1759194304215,1e-08,211.87,211.84,11.80135951]
[1759194304795,1e-08,211.87,211.83,4.72076665]
[1759194304999,0.7,211.86,211.83,4.72076665]
[1759194305204,0.7,211.85,211.83,4.72076665]
[1759194306505,0.7,211.85,211.81,11.80293498]
[1759194307295,0.70000001,211.87,211.8,4.72143531]
[1759194307510,0.70000001,211.87,211.8,17.1950236]
[1759194307684,1e-08,211.87,211.83,26.0]
[1759194307887,1e-08,211.87,211.84,0.67]
[1759194308690,0.7,211.86,211.85,4.72032098]
[1759194309109,1e-08,211.87,211.85,4.72032098]
[1759194309308,0.7,211.86,211.78,0.67]
[1759194309492,0.7,211.86,211.79,60.24]
[1759194309692,1e-08,211.87,211.8,0.67]
[1759194310708,1e-08,211.87,211.81,16.52424341]
[1759194311093,1e-08,211.87,211.82,0.67]
[1759194311603,1e-08,211.87,211.83,0.67]
[1759194312702,1e-08,211.87,211.84,16.52190331]
[1759194313415,1e-08,211.87,211.84,17.19190331]
[1759194313594,0.7,211.86,211.84,4.7205438]
[1759194313798,0.7,211.85,211.84,4.7205438]
[1759194314811,0.7,211.85,211.82,16.5234633]
[1759194315007,1e-08,211.87,211.82,16.5234633]
[1759194315220,0.67,211.86,211.82,16.5234633]
[1759194315609,1e-08,211.87,211.82,17.2434633]
[1759194315806,0.67000001,211.87,211.82,17.2434633]
[1759194316613,1e-08,211.87,211.81,4.72111786]
[1759194316920,0.67,211.86,211.79,60.22]
[1759194317096,0.67,211.86,211.8,17.2446081]
[1759194318298,1e-08,211.87,211.81,0.72]
[1759194318521,0.67,211.86,211.81,0.72]
[1759194318828,3.81510309,211.85,211.76,4.72232716]
[1759194319030,3.81470204,211.84,211.76,4.72232716]
[1759194319236,3.81645964,211.83,211.76,16.52814506]
[1759194319405,0.67,211.83,211.76,17.24814506]
[1759194319796,3.81641438,211.82,211.76,4.72232716]
[1759194320000,3.14641438,211.81,211.76,4.72232716]
[1759194320223,0.67,211.82,211.77,0.72]
[1759194320439,3.81883095,211.81,211.76,4.72232716]
[1759194320622,3.81883829,211.8,211.72,0.72]
[1759194320798,0.67,211.8,211.73,16.53048693]
[1759194321004,0.67,211.8,211.74,0.72]
[1759194322838,3.15292015,211.79,211.74,4.72262203]
[1759194323160,26.0,211.77,211.68,34.9]
[1759194323446,3.82292015,211.76,211.67,4.72424891]
[1759194323629,3.82292015,211.75,211.67,4.72424891]
[1759194323820,26.0,211.73,211.65,4.72457214]
[1759194324026,3.82292015,211.72,211.65,4.72457214]
[1759194324319,3.15292015,211.71,211.65,4.72457214]
[1759194324616,3.1503925,211.7,211.65,4.72457214]
[1759194324845,3.1503925,211.69,211.65,4.72457214]
[1759194325215,0.67,211.7,211.65,4.72457214]
[1759194325748,0.67,211.69,211.65,4.72457214]
[1759194326049,0.67,211.68,211.65,4.72457214]
[1759194326616,0.67,211.68,211.62,0.1]
[1759194326617,0.67,211.67,211.62,0.1]
[1759194326822,0.67,211.67,211.62,4.82542697]
[1759194327028,0.67,211.66,211.62,4.82542697]
[1759194327347,14.26559401,211.71,211.63,0.68]
[1759194327516,0.67,211.7,211.63,0.68]
[1759194329215,0.67,211.7,211.64,4.72500472]
[1759194330820,26.0,211.8,211.65,0.68]
[1759194331027,26.0,211.71,211.64,16.53751653]
[1759194331323,26.0,211.71,211.63,4.72522799]
[1759194331324,13.59559401,211.69,211.63,4.72522799]
[1759194331526,13.59559401,211.69,211.62,0.1]
[1759194331527,3.61524209,211.68,211.62,0.1]
[1759194331719,13.59559401,211.67,211.62,4.82543459]
[1759194331924,26.67,211.66,211.62,0.1]
[1759194332341,26.0,211.66,211.62,0.1]
[1759194332551,0.67,211.65,211.62,0.1]
[1759194332729,0.67,211.64,211.62,0.1]
[1759194333050,0.67,211.67,211.62,5.50540812]
[1759194334529,191.82,211.68,211.62,4.82540812]
[1759194334740,135.52469012,211.78,211.62,16.6389872]
[1759194334937,0.67,211.73,211.63,0.68]
[1759194335348,26.67,211.73,211.63,0.68]
[1759194336051,13.59559401,211.72,211.64,4.72500472]
[1759194336263,34.89,211.71,211.64,4.72500472]
[1759194336432,0.67,211.7,211.64,4.72500472]
[1759194336832,34.22,211.71,211.65,0.68]
[1759194337347,34.89,211.71,211.66,4.72455825]
[1759194337935,34.89,211.71,211.66,5.40455825]
[1759194338845,0.67,211.71,211.66,17.21595388]
[1759194339159,60.22,211.71,211.67,0.68]
[1759194339455,60.22,211.71,211.68,4.72411186]
[1759194339747,34.22,211.71,211.69,0.68]
[1759194340156,34.89,211.71,211.65,11.81184969]
[1759194340366,0.67,211.7,211.65,11.81184969]
[1759194340529,34.22,211.71,211.65,12.49184969]
[1759194340737,60.89,211.72,211.66,0.68]
[1759194341030,34.22,211.72,211.66,0.68]
[1759194341229,14.26559401,211.77,211.67,16.53517266]
[1759194341430,34.22,211.75,211.68,0.68]
[1759194342942,34.89,211.75,211.69,16.53361046]
[1759194343442,34.89,211.75,211.7,0.68]
[1759194343443,34.22,211.75,211.7,0.68]
[1759194343651,34.22,211.75,211.71,0.68]
[1759194345258,34.22,211.75,211.72,4.72321934]
[1759194345551,34.2,211.77,211.72,17.2112677]
[1759194345746,34.87,211.77,211.72,17.2112677]
[1759194346448,34.2,211.77,211.73,0.68]
[1759194347369,0.67,211.82,211.74,17.20970624]
[1759194347533,34.2,211.81,211.74,17.20970624]
[1759194348032,34.2,211.81,211.75,0.68]
[1759194349357,34.2,211.81,211.76,4.72232716]
[1759194349538,0.67,211.8,211.76,4.72232716]
[1759194349857,0.67,211.8,211.76,16.52814506]
[1759194350859,34.2,211.81,211.76,12.4858179]
[1759194351235,34.87,211.81,211.76,12.4858179]
[1759194352030,34.87,211.81,211.76,11.8058179]
[1759194352238,34.2,211.82,211.77,0.68]
[1759194352443,34.9,211.82,211.77,0.68]
[1759194352638,0.7,211.81,211.76,11.8058179]
[1759194352844,0.7,211.81,211.76,17.20814506]
[1759194353046,0.7,211.8,211.76,16.52814506]
[1759194353260,26.7,211.79,211.68,0.68]
[1759194353563,34.2,211.78,211.68,14.88622706]
[1759194353771,0.7,211.77,211.69,0.68]
[1759194354358,0.7,211.77,211.69,17.21343655]
[1759194354654,0.7,211.77,211.7,0.68]
[1759194354860,0.7,211.77,211.71,16.53204855]
[1759194355062,0.7,211.76,211.71,4.72344244]
[1759194355261,0.7,211.75,211.71,4.72344244]
[1759194355448,34.2,211.78,211.71,4.72344244]
[1759194355650,0.7,211.77,211.71,5.40344244]
[1759194355955,0.7,211.76,211.71,4.72344244]
[1759194356160,0.7,211.75,211.71,4.72344244]
[1759194356365,0.7,211.74,211.71,4.72344244]
[1759194356536,0.7,211.73,211.69,4.7238887]
[1759194356737,0.7,211.72,211.68,11.80989864]
[1759194357195,0.7,211.72,211.68,12.48989864]
[1759194357372,36.76743958,211.74,211.68,12.48989864]
[1759194358944,36.06743958,211.74,211.68,16.5340105]
[1759194359135,26.0,211.71,211.66,4.72435012]
[1759194359455,34.18,211.7,211.66,4.72435012]
[1759194359639,1.88743958,211.68,211.62,0.1]
[1759194359838,1.88743958,211.68,211.62,17.31906182]
[1759194360269,26.0,211.71,211.63,0.68]
[1759194360478,3.14451736,211.76,211.63,0.68]
[1759194360687,34.18,211.75,211.65,26.0]
[1759194360968,1.88743958,211.7,211.64,4.72500472]
[1759194361171,0.7,211.69,211.64,4.72500472]
[1759194362577,0.7,211.69,211.64,5.40500472]
[1759194362948,0.7,211.68,211.63,4.72519569]
[1759194363146,0.7,211.68,211.63,17.21826567]
[1759194363582,26.7,211.67,211.62,0.1]
[1759194363868,26.0,211.66,211.62,0.1]
[1759194364171,34.18,211.65,211.62,0.1]
[1759194364373,26.0,211.63,211.62,0.1]
[1759194364548,13.59559401,211.63,211.62,0.1]
[1759194364751,14.29559401,211.63,211.62,0.1]
[1759194364960,14.29559401,211.63,211.51,4.72790884]
[1759194364961,26.0,211.61,211.51,4.72790884]
[1759194365274,13.59559401,211.59,211.51,4.72790884]
[1759194365452,16.74432497,211.59,211.51,4.72790884]
[1759194365648,26.0,211.56,211.49,4.7282575]
[1759194365869,34.18,211.55,211.49,4.7282575]
[1759194366074,34.18,211.55,211.49,16.54914737]
[1759194366383,34.18,211.55,211.5,0.68]
[1759194366590,34.18,211.55,211.49,16.54914737]
[1759194366591,34.18,211.55,211.51,0.68]
[1759194366951,34.18,211.57,211.53,16.54611638]
[1759194367151,3.14951208,211.62,211.54,0.68]
[1759194367370,34.18,211.61,211.54,0.68]
[1759194367848,34.88,211.61,211.54,0.68]
[1759194368083,34.88,211.61,211.53,4.72746182]
[1759194368584,0.7,211.6,211.53,4.72746182]
[1759194369164,3.14951208,211.62,211.54,0.68]
[1759194369468,3.14951208,211.62,211.53,16.54611638]
[1759194369469,34.18,211.59,211.53,16.54611638]
[1759194369654,34.88,211.59,211.53,16.54611638]
[1759194370874,34.18,211.59,211.53,16.54611638]
[1759194371074,34.18,211.59,211.54,0.68]
[1759194371375,34.18,211.59,211.55,0.68]
[1759194371672,26.0,211.63,211.56,0.68]
[1759194371972,34.18,211.62,211.56,0.68]
[1759194372350,0.7,211.64,211.56,0.68]
[1759194372556,34.18,211.65,211.56,0.68]
[1759194372771,34.18,211.65,211.56,14.89430433]
[1759194372965,34.88,211.65,211.57,16.54298812]
[1759194373171,0.7,211.64,211.57,16.54298812]
[1759194373566,0.7,211.64,211.57,17.22298812]
[1759194373761,34.18,211.65,211.58,0.68]
[1759194374957,34.88,211.65,211.57,11.81642009]
[1759194375162,0.68,211.64,211.57,11.81642009]
[1759194375580,0.68,211.63,211.57,11.81642009]
[1759194376472,0.68,211.62,211.56,4.72679145]
[1759194376676,0.68,211.64,211.56,4.72679145]
[1759194376870,26.0,211.62,211.56,4.72679145]
[1759194377077,0.68,211.61,211.53,16.54592168]
[1759194377277,34.18,211.6,211.53,30.76089952]
[1759194377661,34.18,211.6,211.54,0.7]
[1759194378591,34.18,211.62,211.54,0.7]
[1759194378972,0.68,211.65,211.54,0.7]
[1759194379297,157.6,211.66,211.55,16.54455211]
[1759194379458,34.18,211.65,211.56,0.7]
[1759194379865,34.86,211.65,211.56,0.7]
[1759194380083,34.18,211.65,211.56,0.7]
[1759194380284,34.86,211.65,211.56,0.7]
[1759194381168,34.86,211.65,211.57,16.54298812]
[1759194381368,131.6,211.72,211.58,0.67]
[1759194381570,0.66,211.69,211.6,26.0]
[1759194381792,34.18,211.68,211.61,0.67]
[1759194381986,34.18,211.68,211.61,14.88161089]
[1759194382214,34.18,211.68,211.62,0.67]
[1759194382684,34.84,211.68,211.61,14.21161089]
[1759194383078,34.84,211.68,211.62,16.53907948]
[1759194385196,34.18,211.68,211.62,17.20907948]
[1759194385401,34.18,211.68,211.62,31.41934403]